Cogmind - Beta 11.1 --- EXPLORER MODE // 2022.05.02 @ 17:54:56 Player: i_like_trains72 Result: Destroyed by L-31 Rogue with Katana Performance ------------- Evolutions (1) 500 Regions Visited (2) 400 Robots Destroyed (19) 95 Value Destroyed (141) 141 Prototype IDs (0) 0 Alien Tech Used (0) 0 Bonus (0) 0 TOTAL SCORE: 1136 Bonus ------- None Cogmind --------- Core Integrity 0/400 Matter 300/300 Energy 100/100 System Corruption 1% Temperature Cool (0) Movement Core (350) Ox6 Location -9/Materials Parts ------- > --- POWER (2) -------- (None) > --- PROPULSION (2) --- (None) > --- UTILITY (4) ------ Large Storage Unit > --- WEAPON (2) ------- (None) > --- INVENTORY (15) --- Light Ion Engine Aluminum Leg Wheel Compact Wheel Medium Storage Unit Large Storage Unit Small Matter Pod (50) Machine Analyzer Targeting Computer Mining Laser Peak State ------------ > --- POWER ------------ Light Ion Engine Backup Power III > --- PROPULSION ------- Wheel Backup Propulsion III > --- UTILITY ---------- Large Storage Unit Small Matter Pod > --- WEAPON ----------- Assault Rifle Assault Rifle > --- INVENTORY -------- Light Ion Engine Aluminum Leg Wheel Compact Wheel Medium Storage Unit Large Storage Unit Small Matter Pod Machine Analyzer Targeting Computer Mining Laser [Rating: 13] Favorites ----------- Power Light Ion Engine Engine Light Ion Engine Propulsion Wheel Wheel Wheel Hover Unit Backup Propulsion III Utility Small Matter Pod Storage Small Matter Pod Weapon Assault Rifle Ballistic Gun Assault Rifle Build | -11 -10 -9 ------- Run | Scr Mat Mat Slots Evolved 3 | . 1 2 Power 1 | . 1 . Propulsion . | . . . Utility 2 | . . 2 Weapon . | . . . Parts Attached 9 | 7 2 . Power 1 | 1 . . Engine 1 | 1 . . Core . | . . . Reactor . | . . . Propulsion 3 | 3 . . Treads . | . . . Leg . | . . . Wheel 3 | 3 . . Hover . | . . . Flight . | . . . Utility 3 | 1 2 . Device . | . . . Storage 3 | 1 2 . Processor . | . . . Hackware . | . . . Protection . | . . . Artifact . | . . . Weapon 2 | 2 . . Energy Gun . | . . . Energy Cannon . | . . . Ballistic Gun 2 | 2 . . Ballistic Cannon . | . . . Launcher . | . . . Special Weapon . | . . . Impact Weapon . | . . . Slashing Weapon . | . . . Piercing Weapon . | . . . Special Melee Weapon . | . . . Unidentified Prototypes . | . . . Parts Lost 7 | . . 7 Power 2 | . . 2 Propulsion 2 | . . 2 Utility 1 | . . 1 Weapon 2 | . . 2 Highest Loss Streak 7 | . . 7 To Critical Strikes . | . . . Average Slot Usage (%) 83 | . 89 66 Engine 16 | . 17 15 Wheel 16 | . 18 8 Hover 5 | . 4 8 Storage 21 | . 22 19 Ballistic Gun 22 | . 25 15 Naked Turns . | . . . Heaviest Build 30 | 8 30 30 Greatest Support 20 | 20 20 8 Greatest Overweight (x) 6 | 1 3 6 Average Overweight (x) . | . 1 3 Largest Inventory Capacity 15 | 5 15 15 Average Capacity 11 | 5 13 15 Most Carried 15 | 5 15 10 Average Carried 8 | 3 10 10 Final Capacity 15 | 5 15 15 Final Carried 10 | 4 10 10 Class Distribution -------------------- 100% | Hacker-Mutant Dominant Class ---------------- Hacker-Mutant | -10/Materials Hacker-Mutant | -9/Materials Resources | -11 -10 -9 ----------- Run | Scr Mat Mat Matter Collected 537 | 352 182 3 Remotely . | . . . Salvage Created 575 | 137 389 49 Parts 47 | 12 31 4 Haulers Intercepted . | . . . Recyclers Shooed 1 | . 1 . Parts Field Recycled . | . . . Retrieved Matter . | . . . Parts Self-Destructed . | . . . Prevented . | . . . Kills | -11 -10 -9 ------- Run | Scr Mat Mat Combat Hostiles Destroyed 1 | 1 . . Guns 1 | 1 . . Classes Destroyed 7 | 3 4 . Worker 8 | 1 5 2 Builder 2 | . 2 . Tunneler 4 | 3 1 . Recycler 2 | . 2 . Mechanic 1 | . 1 . Watcher 1 | . 1 . Grunt 1 | 1 . . Best Kill Streak 4 | 4 2 1 Combat Bots Only 1 | 1 . . Max Kills in Single Turn 1 | 1 1 1 Gunslinging . | . . . Exploded . | . . . Melee . | . . . Uniques/NPCs Destroyed . | . . . Combat | -11 -10 -9 -------- Run | Scr Mat Mat Damage Taken 888 | 60 . 828 Core 422 | 14 . 408 Absorbed by Shields . | . . . Core Remaining (%) 94 | 94 94 . Volleys Fired 49 | 12 26 11 Largest 2 | 2 2 2 Hottest 40 | 40 40 40 Shots Fired 97 | 24 52 21 Gun 97 | 24 52 21 Cannon . | . . . Launcher . | . . . Special . | . . . Kinetic 97 | 24 52 21 Thermal . | . . . Explosive . | . . . Electromagnetic . | . . . Robot Hit Streak 16 | 11 16 6 Robot Miss Streak 1 | 1 1 1 Penetration Max . | . . . Secondary Targets 1 | 1 . . Max Gunslinging Chain 1 | 1 . . Shots Hit Robots 52 | 14 28 10 Core Hits 26 | 6 16 4 Critical Kills . | . . . Critical Parts Destroyed . | . . . Critical Strikes . | . . . Melee Attacks . | . . . Impact . | . . . Slashing . | . . . Piercing . | . . . Sneak Attacks . | . . . Combat Hostiles . | . . . Follow-up Attacks . | . . . Damage Inflicted 684 | 193 372 119 Guns 682 | 193 372 117 Cannons . | . . . Explosions . | . . . Melee . | . . . Ramming 2 | . . 2 Kinetic 682 | 193 372 117 Thermal . | . . . Explosive . | . . . Electromagnetic . | . . . Impact . | . . . Slashing . | . . . Piercing . | . . . Highest Corruption 1 | . . 1 Average Corruption 1 | . . 1 Corruption Purged . | . . . Corruption Blocked . | . . . Effects 2 | . . 2 Matter Fused 1 | . . 1 Heat Flow Errors 1 | . . 1 Overload Shots . | . . . Overflow Damage . | . . . Projectiles . | . . . Explosions . | . . . Melee . | . . . Knockbacks . | . . . Impact . | . . . Kinetic . | . . . Secondary . | . . . Self-Inflicted Damage . | . . . Shots . | . . . Rammed 4 | . . 4 Targets Rammed 4 | . . 4 Kicked . | . . . Crushed . | . . . Highest Temperature 225 | . 6 225 Average Temperature 104 | . 6 114 Received Heat Transfer 300 | 54 . 246 Siege Activations . | . . . Robots Corrupted . | . . . Combat Hostiles . | . . . Parts Fried . | . . . Impact Corruptions . | . . . Robots Melted . | . . . Combat Hostiles . | . . . Parts Melted . | . . . Heat Transferred . | . . . Parts Sabotaged . | . . . Parts Stolen . | . . . Parts Stripped . | . . . Power Chain Reactions . | . . . Missiles Intercepted . | . . . Alert | -11 -10 -9 ------- Run | Scr Mat Mat Peak Influence 101 | 43 101 31 Initial 20 | . 20 6 Average 28 | 7 42 12 Maximum Alert Level . | . . . Low Security (%) 100 | 100 100 100 Level 1 . | . . . Level 2 . | . . . Level 3 . | . . . Level 4 . | . . . Level 5 . | . . . High Security . | . . . Max Security . | . . . Squads Dispatched . | . . . Investigation . | . . . Extermination . | . . . Reinforcement . | . . . Assault . | . . . Garrison . | . . . Intercept . | . . . Searches Triggered . | . . . Construction Impeded . | . . . Haulers Reinforced . | . . . Active Scanning Responses . | . . . Cargo Convoy Interrupts . | . . . Stealth | -11 -10 -9 --------- Run | Scr Mat Mat Distress Signals 1 | . . 1 Communications Jammed . | . . . Distress Signals . | . . . Times Spotted 13 | 1 3 9 Peak Tracking Total 7 | 1 1 7 Tactical Retreats . | . . . Traps | -11 -10 -9 ------- Run | Scr Mat Mat Traps Triggered . | . . . Indirectly . | . . . Trap Hack Attempts . | . . . Triggered . | . . . Disarmed . | . . . Reprogrammed . | . . . Reused . | . . . Traps Extracted . | . . . Installed . | . . . Triggered . | . . . Machines | -11 -10 -9 ---------- Run | Scr Mat Mat Machines Disabled 2 | . 2 . Max in Single Turn 1 | . 1 . Machines Sabotaged . | . . . Garrisons Compromised . | . . . Overloaded Fab Kills . | . . . Hacking | -11 -10 -9 --------- Run | Scr Mat Mat Machines Accessed 1 | . 1 . Terminals . | . . . Fabricators . | . . . Repair Stations 1 | . 1 . Recycling Units . | . . . Scanalyzers . | . . . Garrison Access . | . . . Total Hacks 6 | . 6 . Successful 3 | . 3 . Failed 3 | . 3 . Catastrophic . | . . . Database Lockouts . | . . . Manual . | . . . Terminals . | . . . Fabricators . | . . . Repair Stations 6 | . 6 . Recycling Units . | . . . Scanalyzers . | . . . Garrison Access . | . . . Terminal Hacks . | . . . Fabricator Hacks . | . . . Repair Station Hacks 3 | . 3 . Scan Component 2 | . 2 . Refit 1 | . 1 . Recycling Unit Hacks . | . . . Scanalyzer . | . . . Garrison Access Hacks . | . . . Unauthorized Hacks . | . . . Terminals . | . . . Fabricators . | . . . Repair Stations . | . . . Recycling Units . | . . . Scanalyzers . | . . . Garrison Access . | . . . Data Cores Recovered . | . . . Used . | . . . Hacking Detections 1 | . 1 . Full Trace Events 1 | . 1 . Feedback Events . | . . . Feedback Blocked . | . . . Robot Schematics Acquired . | . . . Robots Built . | . . . Authchips . | . . . Time . | . . . Total Robot Build Rating . | . . . Part Schematics Acquired . | . . . Parts Built . | . . . Authchips . | . . . Time . | . . . Total Part Build Rating . | . . . Parts Repaired . | . . . Time . | . . . Parts Recycled . | . . . Recycled Matter . | . . . Retrieved Matter . | . . . Retrieved Components . | . . . Parts Scanalyzed . | . . . Part Schematics Acquired . | . . . Parts Damaged . | . . . Bothacking | -11 -10 -9 ------------ Run | Scr Mat Mat Used RIF Installer . | . . . Robots Hacked . | . . . Non-combat . | . . . Combat . | . . . Robot Hacks Applied . | . . . Relay Couplers Released . | . . . Fabnet Peak Effective % . | . . . Robots Rewired . | . . . Allies Hacked . | . . . Hacks Repelled . | . . . Allies | -11 -10 -9 -------- Run | Scr Mat Mat Total Allies . | . . . Largest Group . | . . . Highest-Rated Group . | . . . Highest-Rated Ally . | . . . Total Orders . | . . . Ally Attacks . | . . . Total Damage . | . . . Kills . | . . . Allies Corrupted . | . . . Allies Melted . | . . . Intel | -11 -10 -9 ------- Run | Scr Mat Mat Robot Analysis Total . | . . . Derelict Logs Recovered . | . . . Drone Launches . | . . . Drone Recoveries . | . . . Exploration | -11 -10 -9 ------------- Run | Scr Mat Mat Turns Passed 1142 | 293 640 209 Spaces Moved 776 | 330 395 51 Core 169 | 164 . 5 Treads . | . . . Legs . | . . . Wheels 485 | 166 319 . Hover 122 | . 76 46 Flight . | . . . Fastest Speed 50 | 50 80 240 Average Speed 121 | 72 136 319 Slowest Speed 350 | 100 325 350 Overloaded Moves . | . . . Propulsion Burnouts . | . . . Robots Hopped . | . . . Cave-ins Triggered . | . . . Exploration Rate (%) 14 | 6 28 8 Regions Visited 2 Branch Regions . Pre-discovered Areas . | . . . Known Exits Taken 2 | 1 1 . Unknown Exits Taken . | . . . Scrap Searched . | . . . Spaces Dug . | . . . Terrain Destroyed . | . . . Melee . | . . . Projectile . | . . . AOE . | . . . Terrain Rammed . | . . . Walls Destroyed . | . . . Machines Disabled . | . . . Actions | -11 -10 -9 --------- Run | Scr Mat Mat Total 874 | 358 450 66 Wait . | . . . Move 774 | 329 394 51 Hop . | . . . Pick Up 24 | 8 16 . Fast Attach 5 | 4 1 . Attach 2 | 2 . . Detach . | . . . Swap 2 | 1 1 . Drop 14 | 2 12 . Fire 49 | 12 26 11 Melee . | . . . Ram 4 | . . 4 Kick . | . . . Crush . | . . . Escape Stasis . | . . . Rewire . | . . . Trap . | . . . Miscellaneous . | . . . Route ------- -11/Scrapyard -10/Materials (discovered 2 exits: *Mat / *Min) -9/Materials History --------- Turn | Location | Event 2 | -11/Scrapyard | Met Revision 17 233 | -11/Scrapyard | Identified exit to Materials 233 | -11/Scrapyard | Discovered exit to Materials (range 8) 294 | -11/Scrapyard | Entered Materials 294 | -10/Materials | Evolved 1 slot: Power x1 314 | -10/Materials | Build established: Hacker-Mutant 516 | -10/Materials | Identified exit to Mines 516 | -10/Materials | Discovered exit to Mines (range 9) 850 | -10/Materials | Identified exit to Materials 850 | -10/Materials | Discovered exit to Materials (range 15) 934 | -10/Materials | Entered another Materials area 934 | -9/Materials | Evolved 2 slots: Utility x2 1129 | -9/Materials | Core integrity fell below 50% 1137 | -9/Materials | Core integrity fell below 20% 1143 | -9/Materials | Destroyed by L-31 Rogue with Katana Last Messages --------------- System corrupted by crushing effect (+1). K-01 Serf collects debris. System corrupted: Heat flow error (+247). K-01 Serf collects debris. Knocked back. Assault Rifle destroyed. Lgt. Ion Engine destroyed. Wheel destroyed. Backup Propulsion III destroyed. Slammed into B-36 Bruiser. Ramming works as a last resort when unarmed or blocked, but can have serious negative consequences. Sml. Matter Pod destroyed. Slammed into B-36 Bruiser. Slammed into G-34 Mercenary. Destabilizing: Core damaged (-20). System corrupted: Matter fused (-5). Acquired 3 matter. Slammed into G-34 Mercenary. [Achievement: First Step to Greatness] Map ----- +----------------------------------------------------+ | | | | | | | | | | | | | | | | | | | | | | | | | | | | | ?????????????????????????????????????????????????? | | ?????????????????????????????????????????????????? | | ?????????????????????????????????????????????????? | | ?????????????????????????????????????????????????? | | ?????????????????????????????????????????????????? | | ?????????????????????????????????????????????????? | | ?????????????????????????????????????????????????? | | ?????????????????????????????????????????????????? | | ?????????????????????????????????????????????????? | | ?????????????????###########?????????????????????? | | ?????????????????# """ #?????????????????????? | | ?????????????????# "Y" %@l######????????????????? | | ?????????????????# " " b g# #????????????????? | | ?????????????????# g # #????????????????? | | ?????????????????# # #????????????????? | | ?????????????????# """ + #????????????????? | | ?????????????????# """ # #????????????????? | | ?????????????????# """ # #???? ?????????? | | ?????????????????########### #?? ?????????? | | ??????????????############# #? ??????????? | | ????????????? # ????????????? | | ?????????????? %+ ??????????????? | | ?????????????? """"""" # ?????????????? | | ???????????????????"""""" # ???????????? | | ??????????????????""""""" #? ?????????? | | ????????????????? """"""" #?#######????????? | | ??????????" """""""% #????????????????? | | ????????? #????????????????? | | ????????? ! #????????????????? | | ????????? =% """"""" ^^^#????????????????? | | ??????????### """"""" ?????????????? | | ??????????????????""""""" ??????????? | | ??????????????????"""""""" ???????????? | | ?????????????????????""""%" ###########??????????? | | ??????????????????????? "%" #????????????????????? | | ???????????????????????? " #????????????????????? | +----------------------------------------------------+ Best States ------------- Heat Dissipation 28 Energy Generation 16 Energy Capacity 125 Matter Stores 350 Matter Capacity 350 Sight Range 16 Terrain Scan Density 10 Resistance: KI 35 Resistance: TH 35 Resistance: EX 35 Resistance: EM 35 Resistance: I 35 Resistance: S 35 Resistance: P 35 Evasion (%) 50 Offensive Hacking 20 Item Schematics ----------------- None Robot Schematics ------------------ None Fabricated ------------ Nothing Alien Tech Used ----------------- None Achievements -------------- Crack Shot First Step to Greatness Challenges ------------ None Game ------ Seed ShieldTerrainDeconstructor Manual? 0 Play Time 00:27:25 Cumulative 0.8 hours Start 2022.05.02 @ 17:13:16 End 2022.05.02 @ 17:54:56 Sessions 1 Manual Loads 0 Difficulty Explorer Special Mode None Game No. 1 Rogue 0 Adventurer 0 Explorer 1 Win Type - Total 0 Types 0/0/0/0/0/0/0/0/0 Lore% 0 Gallery% 0 Achievement% 0 Wizard Run 0 Options --------- ASCII 0 Keyboard 0 Movement Mouse Keybinds 0 Fullscreen 2 Font 18/SmallcapsGlow Map View 76x50 Tactical HUD 0 Map Filters NONE Filters NONE Steam 1 RUN: 47b85e2d-2396-4d1c-bdc8-e371864ff015